{"text_format":"1","workbook":"xlsx","n_sheets":3,"sheets":["Instrucciones","Reformulación Presupuesto Bb2","Resumen Presupuesto"],"not_rendered":{"charts":0,"images":5,"macros":1,"external_links":0,"defined_names":8,"comments":2,"pivot_tables":0},"unopened":[],"bounds":{"document_bytes":16777216,"sheet_cells":100000,"rows_first":2000,"rows_last":500,"rows_between":2000,"halvings":0,"cell_chars":16384,"cell_head_chars":4096},"cells_cut":0,"cells_raw":0,"read":"whole","date_system":"1900"}

{"sheet":"Instrucciones","index":0,"n_rows":30,"n_cols":10,"rows_kept":30,"cut":false,"hidden":false,"merged":[[28,1,28,16],[29,1,29,16],[1,9,1,11],[2,2,2,17],[5,2,5,17],[3,9,3,10]]}
[]
[null,null,null,null,null,null,null,null,null,"Doc_básico3_presup_reformulado_Bb2 INSTRUCCIONES"]
[null,null,"SUBVENCIONES DEL AYUNTAMIENTO DE BARCELONA POR EL FORTALECIMIENTO DE LA ECONOMÍA SOCIAL Y SOLIDARIA Y POR LA INTERCOOPERACIÓN EN LA ESTRATEGIA #ESSBCN2030 - FORTALEZCAMOS LA ESS 2023"]
[null,null,null,null,null,null,null,null,null,"FORTALECEMOS LA ESS 2023"]
[]
[null,null,"Aspectos relevantes relacionados con la reformulación"]
[]
[]
[]
[]
[null,"1. Rellenar la pestaña \"Reformulación Presupuesto\" con los datos económicos del proyecto:"]
[null,"1.1  Rellenar los cuadros DATOS BÁSICOS-PREVISIÓN DE GASTOS DEL PROYECTO SUBVENCIONABLE INICIAL, con los datos económicos de la propuesta inicial con subvención otorgada."]
[null,"1.2  Rellenar r los cuadros DATOS BÁSICOS-PREVISIÓN DE GASTOS DEL PROYECTO REFORMULADO, con los datos económicos de la propuesta de reformulación."]
[null,"2. Revisar y llenar la pestaña \"Resumen Presupuesto\" con los datos económicos del proyecto:"]
[null,"3. Imprimir las hojas de las 2 pestañas (Reformulación presupuesto y Resumen Presupuesto). En formato pdf."]
[]
[]
[]
[]
[]
[]
[]
[]
[null,"Pulsa el icono para generar un documento PDF del libro"]
[]
[]
[]
[]
[null,"4. Si la solicitud se presentó por vía telemática, es necesario que registre la documentación, telemáticamente, como trámite específico, dentro de la convocatoria específica como anexión de documentos adicionales y utilice el número de trámite que el sistema de registro le dio en el momento de la presentación de la solicitud de la subvención."]
[null,"5. En caso de que registre la documentación telemáticamente, como instancia genérica, mediante certificado digital, le recomendamos que avise a la dirección de correo electrónico subvencions_ec_solidaria@bcn.cat,para poder realizar un seguimiento, así como también en los casos que presente la documentación a través de una Oficina de Atención Ciudadana del Ayuntamiento, si no ha podido obtener el certificado digital (los requisitos para obtenerlo los encontrará en la Oficina Virtual de Trámites de la Sede Electrónica:https://seuelectronica.ajuntament.barcelona.cat/oficinavirtual/)."]

{"sheet":"Reformulación Presupuesto Bb2","index":1,"n_rows":143,"n_cols":10,"rows_kept":143,"cut":false,"hidden":false,"merged":[[131,0,131,2],[137,0,137,3],[138,0,138,3],[120,0,120,3],[121,0,121,3],[122,0,122,3],[123,0,123,3],[124,0,124,2],[142,0,142,3],[3,0,4,8],[125,0,125,3],[126,0,126,3],[127,0,127,3],[128,0,128,3],[129,0,129,3],[139,0,139,3],[140,0,140,3],[141,0,141,3],[132,0,132,3],[133,0,133,3],[134,0,134,3],[135,0,135,3],[136,0,136,3],[130,0,130,2],[1,1,1,8],[18,0,18,3],[10,6,10,7],[18,6,18,8],[6,2,6,5]]}
[]
[null,"Reformulación presupuesto Modalidad Bb2"]
[]
["SUBVENCIONES DEL AYUNTAMIENTO DE BARCELONA POR EL FORTALECIMIENTO DE LA ECONOMÍA SOCIAL Y SOLIDARIA Y POR LA INTERCOOPERACIÓN EN LA ESTRATEGIA #ESSBCN2030 - FORTALEZCAMOS LA ESS 2023"]
[]
[]
[]
["DATOS BÁSICOS"]
["Nombre de la persona jurídica",null,{"$f":"+IF(H9>Dadesbasiques[[#This Row],[Columna1]],\"ALERTA: La quantia de la subvenció atorgada no pot superar el 80% de la despesa total del projecte a subvencionar\", \" \")","v":" "},null,null,"  "]
["NIF de la persona jurídica",null,{"$f":"+IF(H10>Dadesbasiques[[#This Row],[Columna1]],\"ALERTA: La quantia de la subvenció atorgada no pot superar el 80% de la despesa total del projecte a subvencionar\", \" \")","v":" "}]
["Nombre del proyecto subvencionable",null,{"$f":"+IF(H11>Dadesbasiques[[#This Row],[Columna1]],\"ALERTA: La quantia de la subvenció atorgada no pot superar el 80% de la despesa total del projecte a subvencionar\", \" \")","v":" "},null,null,null,"DATOS BÁSICOS PROYECTO REFORMULADO"]
["Importe total del proyecto subvencionable",null,null,null,null,null,"Importe total del proyecto REFORMULADO"]
["Importe imputable a la subvención municipal",null,null,null,null,null,"Importe imputable a la subvención OTORGADA"]
["Importe de la aportación / Cofinanciación de la organización",{"$f":"+B12-B13","v":0},null,null,null,null,"Importe de la aportación / cofinanciación de la organización",{"$f":"H12-H13","v":0}]
["% del importe solicitado respecto al total del proyecto",{"$f":"B13/B12","v":{"$error":"#DIV/0!"}},null,null,null,null,"% del importe solicitado respecto al total del proyecto subvencionado",{"$f":"H13/H12","v":{"$error":"#DIV/0!"}},{"$f":"+IF(H15>Dadesbasiques[[#This Row],[Columna1]],\"*Este porcentaje debe ser igual o menor al porcentaje subvencionado inicialmente.\",\" \")","v":{"$error":"#DIV/0!"}}]
["Data inici del projecte subvencionat (dd/mm/aaaa)",null,{"$f":"+IF(H16>Dadesbasiques[[#This Row],[Columna1]],\"ALERTA: La quantia de la subvenció atorgada no pot superar el 80% de la despesa total del projecte a subvencionar\", \" \")","v":" "}]
["Data fi del projecte subvencionat (dd/mm/aaaa)",null,{"$f":"+IF(H17>Dadesbasiques[[#This Row],[Columna1]],\"ALERTA: La quantia de la subvenció atorgada no pot superar el 80% de la despesa total del projecte a subvencionar\", \" \")","v":" "}]
[]
["PREVISIÓN DE GASTOS DEL PROYECTO SUBVENCIONABLE PARA SUBMODALIDAD Bb2",null,null,null,null,null,"PREVISIÓN DE GASTOS DEL PROYECTO REFORMULADO"]
[]
[]
["Partidas","Importe imputable a la subvención municipal","Importe de la aportación / Cofinanciación de la organización","Importe total del proyecto",null,null,"Importe imputable a la subvención municipal","Importe de la aportación / Cofinanciación de la organización","Importe total del proyecto"]
["D1. Retribuciones y seguridad social (régimen general o régimen de autónomos) del personal propio vinculado/a al proyecto (máximo 40% subvención)",{"$f":"SUM(B24:B27)","v":0},{"$f":"SUM(C24:C27)","v":0},{"$f":"SUM(DespesesProjecte[[#This Row],[Importe imputable a la subvención municipal]],DespesesProjecte[[#This Row],[Importe de la aportación / Cofinanciación de la organización]])","v":0},null,null,{"$f":"SUM(G24:G27)","v":0},{"$f":"SUM(H24:H27)","v":0},{"$f":"+G23+H23","v":0}]
[null,null,null,{"$f":"SUM(DespesesProjecte[[#This Row],[Importe imputable a la subvención municipal]],DespesesProjecte[[#This Row],[Importe de la aportación / Cofinanciación de la organización]])","v":0},null,null,null,null,{"$f":"+G24+H24","v":0}]
[null,null,null,{"$f":"SUM(DespesesProjecte[[#This Row],[Importe imputable a la subvención municipal]],DespesesProjecte[[#This Row],[Importe de la aportación / Cofinanciación de la organización]])","v":0},null,null,null,null,0]
[null,null,null,{"$f":"SUM(DespesesProjecte[[#This Row],[Importe imputable a la subvención municipal]],DespesesProjecte[[#This Row],[Importe de la aportación / Cofinanciación de la organización]])","v":0},null,null,null,null,0]
[null,null,null,{"$f":"SUM(DespesesProjecte[[#This Row],[Importe imputable a la subvención municipal]],DespesesProjecte[[#This Row],[Importe de la aportación / Cofinanciación de la organización]])","v":0},null,null,null,null,0]
["TOTAL DE GASTOS DE PERSONAL\nMáximo 40% del importe imputable a la subvención municipal si se trata de personal propio asignado al proyecto subvencionado",{"$f":"SUM(B23)","v":0},{"$f":"SUM(C23)","v":0},{"$f":"SUM(D23)","v":0},null,null,{"$f":"SUM(G23)","v":0},{"$f":"SUM(H23)","v":0},{"$f":"SUM(I23)","v":0},{"$f":"+IF(G28>H13*0.4,\"ALERTA: Máximo 40% del importe imputable a la subvención municipal\", \" \")","v":" "}]
["D2. Trabajos realizados por profesionales y empresas externas directamente vinculadas al proyecto",{"$f":"SUM(B30:B32)","v":0},{"$f":"SUM(C30:C32)","v":0},{"$f":"SUM(DespesesProjecte[[#This Row],[Importe imputable a la subvención municipal]],DespesesProjecte[[#This Row],[Importe de la aportación / Cofinanciación de la organización]])","v":0},null,null,{"$f":"SUM(G30:G32)","v":0},{"$f":"SUM(H30:H32)","v":0},{"$f":"+G29+H29","v":0}]
[null,null,null,{"$f":"SUM(DespesesProjecte[[#This Row],[Importe imputable a la subvención municipal]],DespesesProjecte[[#This Row],[Importe de la aportación / Cofinanciación de la organización]])","v":0},null,null,null,null,{"$f":"+G30+H30","v":0}]
[null,null,null,{"$f":"SUM(DespesesProjecte[[#This Row],[Importe imputable a la subvención municipal]],DespesesProjecte[[#This Row],[Importe de la aportación / Cofinanciación de la organización]])","v":0},null,null,null,null,0]
[null,null,null,{"$f":"SUM(DespesesProjecte[[#This Row],[Importe imputable a la subvención municipal]],DespesesProjecte[[#This Row],[Importe de la aportación / Cofinanciación de la organización]])","v":0},null,null,null,null,0]
["D3. Alquiler de bienes muebles/ inmuebles directamente vinculados al proyecto (máximo 25% subvención en caso de inmuebles para un nuevo espacio)",{"$f":"SUM(B34:B36)","v":0},{"$f":"SUM(C34:C36)","v":0},{"$f":"SUM(DespesesProjecte[[#This Row],[Importe imputable a la subvención municipal]],DespesesProjecte[[#This Row],[Importe de la aportación / Cofinanciación de la organización]])","v":0},null,null,{"$f":"SUM(G34:G36)","v":0},{"$f":"SUM(H34:H36)","v":0},0,{"$f":"+IF(G33>H13*0.25,\"ALERTA: Máximo 25% del importe imputable a la subvención municipal\", \" \")","v":" "}]
[null,null,null,{"$f":"SUM(DespesesProjecte[[#This Row],[Importe imputable a la subvención municipal]],DespesesProjecte[[#This Row],[Importe de la aportación / Cofinanciación de la organización]])","v":0},null,null,null,null,0]
[null,null,null,{"$f":"SUM(DespesesProjecte[[#This Row],[Importe imputable a la subvención municipal]],DespesesProjecte[[#This Row],[Importe de la aportación / Cofinanciación de la organización]])","v":0},null,null,null,null,0]
[null,null,null,{"$f":"SUM(DespesesProjecte[[#This Row],[Importe imputable a la subvención municipal]],DespesesProjecte[[#This Row],[Importe de la aportación / Cofinanciación de la organización]])","v":0},null,null,null,null,0]
["D4.  Adquisición de materiales y bienes consumibles íntegramente imputables al proyecto",{"$f":"SUM(B38:B40)","v":0},{"$f":"SUM(C38:C40)","v":0},{"$f":"SUM(DespesesProjecte[[#This Row],[Importe imputable a la subvención municipal]],DespesesProjecte[[#This Row],[Importe de la aportación / Cofinanciación de la organización]])","v":0},null,null,{"$f":"SUM(G38:G40)","v":0},{"$f":"SUM(H38:H40)","v":0},0]
[null,null,null,{"$f":"SUM(DespesesProjecte[[#This Row],[Importe imputable a la subvención municipal]],DespesesProjecte[[#This Row],[Importe de la aportación / Cofinanciación de la organización]])","v":0},null,null,null,null,0]
[null,null,null,{"$f":"SUM(DespesesProjecte[[#This Row],[Importe imputable a la subvención municipal]],DespesesProjecte[[#This Row],[Importe de la aportación / Cofinanciación de la organización]])","v":0},null,null,null,null,0]
[null,null,null,{"$f":"SUM(DespesesProjecte[[#This Row],[Importe imputable a la subvención municipal]],DespesesProjecte[[#This Row],[Importe de la aportación / Cofinanciación de la organización]])","v":0},null,null,null,null,0]
["D5. Transporte – mensajería imputables al proyecto",{"$f":"SUM(B42:B44)","v":0},{"$f":"SUM(C42:C44)","v":0},{"$f":"DespesesProjecte[[#This Row],[Importe imputable a la subvención municipal]]+DespesesProjecte[[#This Row],[Importe de la aportación / Cofinanciación de la organización]]","v":0},null,null,{"$f":"SUM(G42:G44)","v":0},{"$f":"SUM(H42:H44)","v":0},0]
[null,null,null,{"$f":"SUM(DespesesProjecte[[#This Row],[Importe imputable a la subvención municipal]],DespesesProjecte[[#This Row],[Importe de la aportación / Cofinanciación de la organización]])","v":0},null,null,null,null,0]
[null,null,null,{"$f":"SUM(DespesesProjecte[[#This Row],[Importe imputable a la subvención municipal]],DespesesProjecte[[#This Row],[Importe de la aportación / Cofinanciación de la organización]])","v":0},null,null,null,null,0]
[null,null,null,{"$f":"SUM(DespesesProjecte[[#This Row],[Importe imputable a la subvención municipal]],DespesesProjecte[[#This Row],[Importe de la aportación / Cofinanciación de la organización]])","v":0},null,null,null,null,0]
["D6. Publicidad y propaganda de las actividades directamente vinculadas al proyecto ",{"$f":"SUM(B46:B48)","v":0},{"$f":"SUM(C46:C48)","v":0},{"$f":"SUM(DespesesProjecte[[#This Row],[Importe imputable a la subvención municipal]],DespesesProjecte[[#This Row],[Importe de la aportación / Cofinanciación de la organización]])","v":0},null,null,{"$f":"SUM(G46:G48)","v":0},{"$f":"SUM(H46:H48)","v":0},0]
[null,null,null,{"$f":"SUM(DespesesProjecte[[#This Row],[Importe imputable a la subvención municipal]],DespesesProjecte[[#This Row],[Importe de la aportación / Cofinanciación de la organización]])","v":0},null,null,null,null,0]
[null,null,null,{"$f":"SUM(DespesesProjecte[[#This Row],[Importe imputable a la subvención municipal]],DespesesProjecte[[#This Row],[Importe de la aportación / Cofinanciación de la organización]])","v":0},null,null,null,null,0]
[null,null,null,{"$f":"SUM(DespesesProjecte[[#This Row],[Importe imputable a la subvención municipal]],DespesesProjecte[[#This Row],[Importe de la aportación / Cofinanciación de la organización]])","v":0},null,null,null,null,0]
["D7.  Alojamiento y dietas, del personal contratante y voluntario, vinculados al proyecto",{"$f":"SUM(B50:B52)","v":0},{"$f":"SUM(C50:C52)","v":0},{"$f":"SUM(DespesesProjecte[[#This Row],[Importe imputable a la subvención municipal]],DespesesProjecte[[#This Row],[Importe de la aportación / Cofinanciación de la organización]])","v":0},null,null,{"$f":"SUM(G50:G52)","v":0},{"$f":"SUM(H50:H52)","v":0},0]
[null,null,null,{"$f":"SUM(DespesesProjecte[[#This Row],[Importe imputable a la subvención municipal]],DespesesProjecte[[#This Row],[Importe de la aportación / Cofinanciación de la organización]])","v":0},null,null,null,null,0]
[null,null,null,{"$f":"SUM(DespesesProjecte[[#This Row],[Importe imputable a la subvención municipal]],DespesesProjecte[[#This Row],[Importe de la aportación / Cofinanciación de la organización]])","v":0},null,null,null,null,0]
[null,null,null,{"$f":"SUM(DespesesProjecte[[#This Row],[Importe imputable a la subvención municipal]],DespesesProjecte[[#This Row],[Importe de la aportación / Cofinanciación de la organización]])","v":0},null,null,null,null,0]
["D8. Ayudas al transporte para los/las participantes de los proyectos en caso de que sea necesario de manera justificada",{"$f":"SUM(B54:B56)","v":0},{"$f":"SUM(C54:C56)","v":0},{"$f":"SUM(DespesesProjecte[[#This Row],[Importe imputable a la subvención municipal]],DespesesProjecte[[#This Row],[Importe de la aportación / Cofinanciación de la organización]])","v":0},null,null,{"$f":"SUM(G54:G56)","v":0},{"$f":"SUM(H54:H56)","v":0},0]
[null,null,null,{"$f":"SUM(DespesesProjecte[[#This Row],[Importe imputable a la subvención municipal]],DespesesProjecte[[#This Row],[Importe de la aportación / Cofinanciación de la organización]])","v":0},null,null,null,null,0]
[null,null,null,{"$f":"SUM(DespesesProjecte[[#This Row],[Importe imputable a la subvención municipal]],DespesesProjecte[[#This Row],[Importe de la aportación / Cofinanciación de la organización]])","v":0},null,null,null,null,0]
[null,null,null,{"$f":"SUM(DespesesProjecte[[#This Row],[Importe imputable a la subvención municipal]],DespesesProjecte[[#This Row],[Importe de la aportación / Cofinanciación de la organización]])","v":0},null,null,null,null,0]
["D9.  Viajes y desplazamientos imputables a las actividades del proyecto",{"$f":"SUM(B58:B60)","v":0},{"$f":"SUM(C58:C60)","v":0},{"$f":"DespesesProjecte[[#This Row],[Importe imputable a la subvención municipal]]+DespesesProjecte[[#This Row],[Importe de la aportación / Cofinanciación de la organización]]","v":0},null,null,{"$f":"SUM(G58:G60)","v":0},{"$f":"SUM(H58:H60)","v":0},0]
[null,null,null,{"$f":"SUM(DespesesProjecte[[#This Row],[Importe imputable a la subvención municipal]],DespesesProjecte[[#This Row],[Importe de la aportación / Cofinanciación de la organización]])","v":0},null,null,null,null,{"$f":"+G58+H58","v":0}]
[null,null,null,{"$f":"SUM(DespesesProjecte[[#This Row],[Importe imputable a la subvención municipal]],DespesesProjecte[[#This Row],[Importe de la aportación / Cofinanciación de la organización]])","v":0},null,null,null,null,0]
[null,null,null,{"$f":"SUM(DespesesProjecte[[#This Row],[Importe imputable a la subvención municipal]],DespesesProjecte[[#This Row],[Importe de la aportación / Cofinanciación de la organización]])","v":0},null,null,null,null,0]
["D10.  Tributos, cuando sean abonados directamente por la persona jurídica o física beneficiaria",{"$f":"SUBTOTAL(109,B62:B64)","v":0},{"$f":"SUBTOTAL(109,C62:C64)","v":0},{"$f":"DespesesProjecte[[#This Row],[Importe imputable a la subvención municipal]]+DespesesProjecte[[#This Row],[Importe de la aportación / Cofinanciación de la organización]]","v":0},null,null,{"$f":"SUBTOTAL(109,G62:G64)","v":0},{"$f":"SUBTOTAL(109,H62:H64)","v":0},0]
[null,null,null,{"$f":"SUM(DespesesProjecte[[#This Row],[Importe imputable a la subvención municipal]],DespesesProjecte[[#This Row],[Importe de la aportación / Cofinanciación de la organización]])","v":0},null,null,null,null,0]
[null,null,null,{"$f":"SUM(DespesesProjecte[[#This Row],[Importe imputable a la subvención municipal]],DespesesProjecte[[#This Row],[Importe de la aportación / Cofinanciación de la organización]])","v":0},null,null,null,null,0]
[null,null,null,{"$f":"SUM(DespesesProjecte[[#This Row],[Importe imputable a la subvención municipal]],DespesesProjecte[[#This Row],[Importe de la aportación / Cofinanciación de la organización]])","v":0},null,null,null,null,0]
["D11. Gastos del informe de auditoría (máximo 1.500€ subvención)",{"$f":"SUM(B66:B68)","v":0},{"$f":"SUM(C66:C68)","v":0},{"$f":"DespesesProjecte[[#This Row],[Importe imputable a la subvención municipal]]+DespesesProjecte[[#This Row],[Importe de la aportación / Cofinanciación de la organización]]","v":0},null,null,{"$f":"SUM(G66:G68)","v":0},{"$f":"SUM(H66:H68)","v":0},0,{"$f":"+IF(G65>1500,\"ALERTA: Máximo 1.500€ imputables a la subvención municipal\", \" \")","v":" "}]
[null,null,null,{"$f":"SUM(DespesesProjecte[[#This Row],[Importe imputable a la subvención municipal]],DespesesProjecte[[#This Row],[Importe de la aportación / Cofinanciación de la organización]])","v":0},null,null,null,null,0]
[null,null,null,{"$f":"SUM(DespesesProjecte[[#This Row],[Importe imputable a la subvención municipal]],DespesesProjecte[[#This Row],[Importe de la aportación / Cofinanciación de la organización]])","v":0},null,null,null,null,0]
[null,null,null,{"$f":"SUM(DespesesProjecte[[#This Row],[Importe imputable a la subvención municipal]],DespesesProjecte[[#This Row],[Importe de la aportación / Cofinanciación de la organización]])","v":0},null,null,null,null,0]
["D12. Otros gastos que de manera justificada i por la tipología del proyecto puedan imputarse directamente al proyecto",{"$f":"SUM(B70:B72)","v":0},{"$f":"SUM(C70:C72)","v":0},{"$f":"DespesesProjecte[[#This Row],[Importe imputable a la subvención municipal]]+DespesesProjecte[[#This Row],[Importe de la aportación / Cofinanciación de la organización]]","v":0},null,null,{"$f":"SUM(G70:G72)","v":0},{"$f":"SUM(H70:H72)","v":0},0]
[null,null,null,{"$f":"SUM(DespesesProjecte[[#This Row],[Importe imputable a la subvención municipal]],DespesesProjecte[[#This Row],[Importe de la aportación / Cofinanciación de la organización]])","v":0},null,null,null,null,0]
[null,null,null,{"$f":"SUM(DespesesProjecte[[#This Row],[Importe imputable a la subvención municipal]],DespesesProjecte[[#This Row],[Importe de la aportación / Cofinanciación de la organización]])","v":0},null,null,null,null,0]
[null,null,null,{"$f":"SUM(DespesesProjecte[[#This Row],[Importe imputable a la subvención municipal]],DespesesProjecte[[#This Row],[Importe de la aportación / Cofinanciación de la organización]])","v":0},null,null,null,null,0]
["TOTAL DE OTROS GASTOS DIRECTOS",{"$f":"B29+B33+B37+B41+B45+B49+B53+B57+B61+B65+B69","v":0},{"$f":"C29+C33+C37+C41+C45+C49+C53+C57+C61+C65+C69","v":0},{"$f":"D29+D33+D37+D41+D45+D49+D53+D57+D61+D65+D69","v":0},null,null,{"$f":"G29+G33+G37+G41+G45+G49+G53+G57+G61+G65+G69","v":0},{"$f":"H29+H33+H37+H41+H45+H49+H53+H57+H61+H65+H69","v":0},{"$f":"I29+I33+I37+I41+I45+I49+I53+I57+I61+I65+I69","v":0}]
["TOTAL GASTOS DIRECTOS  (aquellos que se identifican directamente con el proyecto subvencionable)",{"$f":"B28+B73","v":0},{"$f":"C28+C73","v":0},{"$f":"D28+D73","v":0},null,null,{"$f":"G28+G73","v":0},{"$f":"H28+H73","v":0},{"$f":"I28+I73","v":0}]
["I1. Personal de soporte al proyecto (nóminas y seguridad social)",{"$f":"SUM(B76:B78)","v":0},{"$f":"SUM(C76:C78)","v":0},{"$f":"SUM(DespesesProjecte[[#This Row],[Importe imputable a la subvención municipal]],DespesesProjecte[[#This Row],[Importe de la aportación / Cofinanciación de la organización]])","v":0},null,null,{"$f":"SUM(G76:G78)","v":0},{"$f":"SUM(H76:H78)","v":0},{"$f":"+G75+H75","v":0}]
[null,null,null,{"$f":"SUM(DespesesProjecte[[#This Row],[Importe imputable a la subvención municipal]],DespesesProjecte[[#This Row],[Importe de la aportación / Cofinanciación de la organización]])","v":0},null,null,null,null,{"$f":"+G76+H76","v":0}]
[null,null,null,{"$f":"SUM(DespesesProjecte[[#This Row],[Importe imputable a la subvención municipal]],DespesesProjecte[[#This Row],[Importe de la aportación / Cofinanciación de la organización]])","v":0},null,null,null,null,0]
[null,null,null,{"$f":"SUM(DespesesProjecte[[#This Row],[Importe imputable a la subvención municipal]],DespesesProjecte[[#This Row],[Importe de la aportación / Cofinanciación de la organización]])","v":0},null,null,null,null,0]
["I2. Seguros",{"$f":"SUM(B80:B82)","v":0},{"$f":"SUM(C80:C82)","v":0},{"$f":"SUM(DespesesProjecte[[#This Row],[Importe imputable a la subvención municipal]],DespesesProjecte[[#This Row],[Importe de la aportación / Cofinanciación de la organización]])","v":0},null,null,{"$f":"SUM(G80:G82)","v":0},{"$f":"SUM(H80:H82)","v":0},0]
[null,null,null,{"$f":"SUM(DespesesProjecte[[#This Row],[Importe imputable a la subvención municipal]],DespesesProjecte[[#This Row],[Importe de la aportación / Cofinanciación de la organización]])","v":0},null,null,null,null,0]
[null,null,null,{"$f":"SUM(DespesesProjecte[[#This Row],[Importe imputable a la subvención municipal]],DespesesProjecte[[#This Row],[Importe de la aportación / Cofinanciación de la organización]])","v":0},null,null,null,null,0]
[null,null,null,{"$f":"SUM(DespesesProjecte[[#This Row],[Importe imputable a la subvención municipal]],DespesesProjecte[[#This Row],[Importe de la aportación / Cofinanciación de la organización]])","v":0},null,null,null,null,0]
["I3. Amortización",{"$f":"SUM(B84:B86)","v":0},{"$f":"SUM(C84:C86)","v":0},{"$f":"SUM(DespesesProjecte[[#This Row],[Importe imputable a la subvención municipal]],DespesesProjecte[[#This Row],[Importe de la aportación / Cofinanciación de la organización]])","v":0},null,null,{"$f":"SUM(G84:G86)","v":0},{"$f":"SUM(H84:H86)","v":0},0]
[null,null,null,{"$f":"SUM(DespesesProjecte[[#This Row],[Importe imputable a la subvención municipal]],DespesesProjecte[[#This Row],[Importe de la aportación / Cofinanciación de la organización]])","v":0},null,null,null,null,0]
[null,null,null,{"$f":"SUM(DespesesProjecte[[#This Row],[Importe imputable a la subvención municipal]],DespesesProjecte[[#This Row],[Importe de la aportación / Cofinanciación de la organización]])","v":0},null,null,null,null,0]
[null,null,null,{"$f":"SUM(DespesesProjecte[[#This Row],[Importe imputable a la subvención municipal]],DespesesProjecte[[#This Row],[Importe de la aportación / Cofinanciación de la organización]])","v":0},null,null,null,null,0]
["I4. Alquiler de bienes inmuebles",{"$f":"SUM(B88:B90)","v":0},{"$f":"SUM(C88:C90)","v":0},{"$f":"SUM(DespesesProjecte[[#This Row],[Importe imputable a la subvención municipal]],DespesesProjecte[[#This Row],[Importe de la aportación / Cofinanciación de la organización]])","v":0},null,null,{"$f":"SUM(G88:G90)","v":0},{"$f":"SUM(H88:H90)","v":0},0]
[null,null,null,{"$f":"SUM(DespesesProjecte[[#This Row],[Importe imputable a la subvención municipal]],DespesesProjecte[[#This Row],[Importe de la aportación / Cofinanciación de la organización]])","v":0},null,null,null,null,0]
[null,null,null,{"$f":"SUM(DespesesProjecte[[#This Row],[Importe imputable a la subvención municipal]],DespesesProjecte[[#This Row],[Importe de la aportación / Cofinanciación de la organización]])","v":0},null,null,null,null,0]
[null,null,null,{"$f":"SUM(DespesesProjecte[[#This Row],[Importe imputable a la subvención municipal]],DespesesProjecte[[#This Row],[Importe de la aportación / Cofinanciación de la organización]])","v":0},null,null,null,null,0]
["I5. Adquisición de materiales y bienes consumibles parcialmente imputables al proyecto",{"$f":"SUM(B92:B94)","v":0},{"$f":"SUM(C92:C94)","v":0},{"$f":"SUM(DespesesProjecte[[#This Row],[Importe imputable a la subvención municipal]],DespesesProjecte[[#This Row],[Importe de la aportación / Cofinanciación de la organización]])","v":0},null,null,{"$f":"SUM(G92:G94)","v":0},{"$f":"SUM(H92:H94)","v":0},0]
[null,null,null,{"$f":"SUM(DespesesProjecte[[#This Row],[Importe imputable a la subvención municipal]],DespesesProjecte[[#This Row],[Importe de la aportación / Cofinanciación de la organización]])","v":0},null,null,null,null,0]
[null,null,null,{"$f":"SUM(DespesesProjecte[[#This Row],[Importe imputable a la subvención municipal]],DespesesProjecte[[#This Row],[Importe de la aportación / Cofinanciación de la organización]])","v":0},null,null,null,null,0]
[null,null,null,{"$f":"SUM(DespesesProjecte[[#This Row],[Importe imputable a la subvención municipal]],DespesesProjecte[[#This Row],[Importe de la aportación / Cofinanciación de la organización]])","v":0},null,null,null,null,0]
["I6. Mantenimiento de edificios y/o instalaciones",{"$f":"SUM(B96:B98)","v":0},{"$f":"SUM(C96:C98)","v":0},{"$f":"SUM(DespesesProjecte[[#This Row],[Importe imputable a la subvención municipal]],DespesesProjecte[[#This Row],[Importe de la aportación / Cofinanciación de la organización]])","v":0},null,null,{"$f":"SUM(G96:G98)","v":0},{"$f":"SUM(H96:H98)","v":0},0]
[null,null,null,{"$f":"SUM(DespesesProjecte[[#This Row],[Importe imputable a la subvención municipal]],DespesesProjecte[[#This Row],[Importe de la aportación / Cofinanciación de la organización]])","v":0},null,null,null,null,0]
[null,null,null,{"$f":"SUM(DespesesProjecte[[#This Row],[Importe imputable a la subvención municipal]],DespesesProjecte[[#This Row],[Importe de la aportación / Cofinanciación de la organización]])","v":0},null,null,null,null,0]
[null,null,null,{"$f":"SUM(DespesesProjecte[[#This Row],[Importe imputable a la subvención municipal]],DespesesProjecte[[#This Row],[Importe de la aportación / Cofinanciación de la organización]])","v":0},null,null,null,null,0]
["I7. Comunicaciones (teléfono, correos, conexión a internet)",{"$f":"SUM(B100:B102)","v":0},{"$f":"SUM(C100:C102)","v":0},{"$f":"SUM(DespesesProjecte[[#This Row],[Importe imputable a la subvención municipal]],DespesesProjecte[[#This Row],[Importe de la aportación / Cofinanciación de la organización]])","v":0},null,null,{"$f":"SUM(G100:G102)","v":0},{"$f":"SUM(H100:H102)","v":0},0]
[null,null,null,{"$f":"SUM(DespesesProjecte[[#This Row],[Importe imputable a la subvención municipal]],DespesesProjecte[[#This Row],[Importe de la aportación / Cofinanciación de la organización]])","v":0},null,null,null,null,0]
[null,null,null,{"$f":"SUM(DespesesProjecte[[#This Row],[Importe imputable a la subvención municipal]],DespesesProjecte[[#This Row],[Importe de la aportación / Cofinanciación de la organización]])","v":0},null,null,null,null,0]
[null,null,null,{"$f":"SUM(DespesesProjecte[[#This Row],[Importe imputable a la subvención municipal]],DespesesProjecte[[#This Row],[Importe de la aportación / Cofinanciación de la organización]])","v":0},null,null,null,null,0]
["I8. Gastos financieros",{"$f":"SUM(B104:B106)","v":0},{"$f":"SUM(C104:C106)","v":0},{"$f":"SUM(DespesesProjecte[[#This Row],[Importe imputable a la subvención municipal]],DespesesProjecte[[#This Row],[Importe de la aportación / Cofinanciación de la organización]])","v":0},null,null,{"$f":"SUM(G104:G106)","v":0},{"$f":"SUM(H104:H106)","v":0},0]
[null,null,null,{"$f":"SUM(DespesesProjecte[[#This Row],[Importe imputable a la subvención municipal]],DespesesProjecte[[#This Row],[Importe de la aportación / Cofinanciación de la organización]])","v":0},null,null,null,null,0]
[null,null,null,{"$f":"SUM(DespesesProjecte[[#This Row],[Importe imputable a la subvención municipal]],DespesesProjecte[[#This Row],[Importe de la aportación / Cofinanciación de la organización]])","v":0},null,null,null,null,0]
[null,null,null,{"$f":"SUM(DespesesProjecte[[#This Row],[Importe imputable a la subvención municipal]],DespesesProjecte[[#This Row],[Importe de la aportación / Cofinanciación de la organización]])","v":0},null,null,null,null,0]
["I9. Suministros ",{"$f":"SUM(B108:B110)","v":0},{"$f":"SUM(C108:C110)","v":0},{"$f":"SUM(DespesesProjecte[[#This Row],[Importe imputable a la subvención municipal]],DespesesProjecte[[#This Row],[Importe de la aportación / Cofinanciación de la organización]])","v":0},null,null,{"$f":"SUM(G108:G110)","v":0},{"$f":"SUM(H108:H110)","v":0},0]
[null,null,null,{"$f":"SUM(DespesesProjecte[[#This Row],[Importe imputable a la subvención municipal]],DespesesProjecte[[#This Row],[Importe de la aportación / Cofinanciación de la organización]])","v":0},null,null,null,null,0]
[null,null,null,{"$f":"SUM(DespesesProjecte[[#This Row],[Importe imputable a la subvención municipal]],DespesesProjecte[[#This Row],[Importe de la aportación / Cofinanciación de la organización]])","v":0},null,null,null,null,0]
[null,null,null,{"$f":"SUM(DespesesProjecte[[#This Row],[Importe imputable a la subvención municipal]],DespesesProjecte[[#This Row],[Importe de la aportación / Cofinanciación de la organización]])","v":0},null,null,null,null,0]
["I10.  Trabajo realizado por otras empresas, parcialmente imputables al proyecto (limpieza, seguridad...)",{"$f":"SUM(B112:B114)","v":0},{"$f":"SUM(C112:C114)","v":0},{"$f":"SUM(DespesesProjecte[[#This Row],[Importe imputable a la subvención municipal]],DespesesProjecte[[#This Row],[Importe de la aportación / Cofinanciación de la organización]])","v":0},null,null,{"$f":"SUM(G112:G114)","v":0},{"$f":"SUM(H112:H114)","v":0},0]
[null,null,null,{"$f":"SUM(DespesesProjecte[[#This Row],[Importe imputable a la subvención municipal]],DespesesProjecte[[#This Row],[Importe de la aportación / Cofinanciación de la organización]])","v":0},null,null,null,null,0]
[null,null,null,{"$f":"SUM(DespesesProjecte[[#This Row],[Importe imputable a la subvención municipal]],DespesesProjecte[[#This Row],[Importe de la aportación / Cofinanciación de la organización]])","v":0},null,null,null,null,0]
[null,null,null,{"$f":"SUM(DespesesProjecte[[#This Row],[Importe imputable a la subvención municipal]],DespesesProjecte[[#This Row],[Importe de la aportación / Cofinanciación de la organización]])","v":0},null,null,null,null,0]
["TOTAL GASTOS INDIRECTOS (se podrán asignar al proyecto subvencionable utilizando un porcentaje de asignación) - Máximo 10 % del importe imputable a la subvención municipal",{"$f":"SUM(B75,B79,B83,B87,B91,B95,B99,B103,B107,B111)","v":0},{"$f":"SUM(C75,C79,C83,C87,C91,C95,C99,C103,C107,C111)","v":0},{"$f":"SUM(D75,D79,D83,D87,D91,D95,D99,D103,D107,D111)","v":0},null,null,{"$f":"SUM(G75,G79,G83,G87,G91,G95,G99,G103,G107,G111)","v":0},{"$f":"SUM(H75,H79,H83,H87,H91,H95,H99,H103,H107,H111)","v":0},{"$f":"SUM(I75,I79,I83,I87,I91,I95,I99,I103,I107,I111)","v":0},{"$f":"+IF(G115>H13*0.1,\"ALERTA: Máximo 10% del importe imputable a la subvención municipal\", \" \")","v":" "}]
["TOTAL DE  GASTOS PREVISTOS",{"$f":"SUM(B115,B74)","v":0},{"$f":"SUM(C115,C74)","v":0},{"$f":"SUM(D115,D74)","v":0},null,null,{"$f":"SUM(G115,G74)","v":0},{"$f":"SUM(H115,H74)","v":0},{"$f":"SUM(I115,I74)","v":0}]
[]
[]
[]
[]
["Modalidad Bb: Creación, desarrollo y fortalecimiento de ecosistemas cooperativos y clusters de ESS"]
["Submodalidad Bb2: Desarrollo y fortalecimiento"]
["1. La cuantía de la subvención otorgada no superará el 80% del gasto total del proyecto a subvencionar. "]
["2.  El importe máximo de subvención para esta submodalidad del ámbito temático de Reactivación: Intercooperación (Bb2) es 40.000€.\n"]
["3. Las personas solicitantes deben elegir una u otra submodalidad (Bb1 o Bb2) en su solicitud de subvención: No es posible presentarse a las dos."]
["4.  En el caso que la solicitud presentada sobrepase el importe máximo, se considerará como importe solicitado el máximo de lo establecido en la convocatoria."]
["5. En esta modalidad se aceptará la imputación de gastos de personal propio y directamente vinculado al proyecto de las organizaciones participantes del acuerdo de colaboración."]
["6. Se limita con un máximo del 40% el importe de la subvención para gastos de personal propio asignado al proyecto subvencionado (retribuciones y seguridad social- régimen general o autónomos-)."]
["7. Los gastos de alquiler de inmuebles se limitan a un máximo del 25% si se trata de un nuevo espacio físico necesario para el desarrollo del proyecto subvencionable. En el caso de alquileres de inmuebles no relacionados directamente con el desarrollo del proyecto, estos gastos de alquiler se imputarán a los gastos indirectos con el límite establecido por estos."]
["8. Para las subvenciones otorgadas por importe igual o superior a 20.000 € es necesario un informe de auditoría para la justificación. El importe de este informe se considera gasto subvencionable, con un límite máximo de 1.500€."]
["9. La submodalidad “Bb2 Desarrollo y fortalecimiento” apoya a los proyectos de intercooperación de ecosistemas cooperativos y clusters sectoriales, intersectoriales o temáticos, de los grupos cooperativos y los acuerdos de intercooperación ya existentes o en procesos de maduración sólidos, que al menos comiencen su ejecución a lo largo de 2023."]
["\n10. Los proyectos de esta submodalidad tendrán que entregar a su finalización un producto comunicativo, de acuerdo con el contenido establecido en la convocatoria de la subvención."]
["11. Son imputables en esta modalidad los gastos indirectos, detallados en el apartado 13.3. de las bases reguladoras; con un máximo del 10% del importe de la subvención.\nEl carácter subvencionable del gasto de amortización estará sujeto a las condiciones siguientes:\n> Que las subvenciones no hayan contribuido a la compra de los bienes.\n> Que la amortización se calcule de conformidad con las normas de contabilidad generalmente aceptadas.\n> Que el coste se refiera al período subvencionable.\n\n"]
["12. Cuando se deba hacer gastos de más de 12.000 €, sin IVA, en el caso de prestaciones de servicios o entrega de bienes y para aquellos gastos de más de 30.000 €,  sin IVA, en el caso de ejecución de obras, se deberán de incorporar tres presupuestos solicitados y argumentar el motivo de la adjudicación en el caso de no ser la propuesta más ventajosa económicamente."]
["13. No serán elegibles facturas de empresas emitidas entre las organizaciones participantes del acuerdo de colaboración."]
["14. En ningún caso se considerarán gastos subvencionables:\n> Los impuestos indirectos cuando sean susceptibles de recuperación o compensación.\n> Los gastos de inversión, incluidas las adquisiciones de bienes muebles.\n> Los gastos realizados con fecha anterior al inicio del proyecto y fecha posterior a la finalización del proyecto.\n> Otros gastos que se indiquen en la convocatoria."]
["15. La retribución de las personas contratadas en el marco del proyecto subvencionado no puede ser inferior al Salario Mínimo Interprofesional (SMI), ni a la estipulada al correspondiente convenio o marco normativo de referencia (punto 7 de las bases 2021: requisitos de los proyectos)."]
["16. Los materiales producidos de difusión, estudios, informes o materiales didácticos utilizados, etc. en el caso de tratarse de gasto elegible de la subvención, deberán tener licencia Creative Commons -Compartir Igual- (share a like) y no podrá tener la condición –Sin Obras Derivadas- (no derivate Works)."]
["17. Los proyectos subvencionados deben fomentar actividades de interés público o social, las cuales deben ser gratuitas para las personas participantes o en ningún caso el precio debe suponer un obstáculo para su participación, buscando otras formas de acceso para personas con dificultades económicas. En el caso que haya algún tipo de lucro, deberán revertir en las propias actividades subvencionadas."]
["18. El Ayuntamiento de Barcelona y sus entidades municipales en ningún caso subvencionarán el mismo proyecto, ejecutado durante el mismo periodo, por ningún otro procedimiento de concesión que no sea el regulado por las bases reguladoras."]
["19. El/la beneficiario/a no podrá alterar en ningún caso el destino de las subvenciones concedidas."]
["20. La organización designada como representante de la agrupación será plenamente responsable del proyecto ante el Ayuntamiento respecto al cumplimiento de las obligaciones establecidas en las bases reguladoras, sin perjuicio de la responsabilidad de las otras organizaciones socias de la agrupación, siendo de aplicación los requisitos previstos en el punto 6.1 de las bases reguladoras."]
["21. En ningún caso podrán formar parte de la agrupación las organizaciones que hayan recibido otras subvenciones para la ejecución del mismo proyecto de otras administraciones públicas."]

{"sheet":"Resumen Presupuesto","index":2,"n_rows":35,"n_cols":11,"rows_kept":35,"cut":false,"hidden":false,"merged":[[32,7,32,9],[21,2,22,2],[21,3,22,3],[21,4,22,4],[33,6,33,11],[6,9,7,9],[26,6,26,7],[1,2,1,7],[5,0,5,1],[3,0,3,8],[6,2,7,2],[6,0,7,1],[6,8,7,8],[6,6,7,7],[6,4,7,4],[6,3,7,3]]}
[]
[null,null,"Resumen presupuesto modalidad Bb2"]
[]
["SUBVENCIONES DEL AYUNTAMIENTO DE BARCELONA POR EL FORTALECIMIENTO DE LA ECONOMÍA SOCIAL Y SOLIDARIA Y POR LA INTERCOOPERACIÓN EN LA ESTRATEGIA #ESSBCN2030 - FORTALEZCAMOS LA ESS 2023",null,null,null,null,null,null,null,null,"MODALIDAD Bb2"]
[]
["GASTOS PREVISTOS",null,null,null,null,null,"INGRESOS PREVISTOS"]
["Gastos directos \n(aquellos que se identifican directamente con el proyecto)",null,"Previsión inicial coste total  ","Previsión reformulada coste total  ","Importe imputado a la subvención otorgada",null,"Ingresos previstos",null,"Previsión inicial ingreso total","Previsión reformulada ingreso total  "]
[]
["Bb2","D1. Retribuciones y seguridad social (régimen general o régimen de autónomos) del personal propio vinculado/a al proyecto (máximo 40% subvención)",{"$f":"+'Reformulación Presupuesto Bb2'!D23","v":0},{"$f":"+'Reformulación Presupuesto Bb2'!I23","v":0},{"$f":"+'Reformulación Presupuesto Bb2'!G23","v":0},{"$f":"+IF(D9<0,\"No s'admeten valors negatius\",\"\")","v":""},"A.","Subvención municipal (importe solicitado a la instancia/otorgado)"]
[null,"D2.  Trabajos realizados por profesionales y empresas externas directamente vinculadas al proyecto subvencionado",{"$f":"+'Reformulación Presupuesto Bb2'!D29","v":0},{"$f":"+'Reformulación Presupuesto Bb2'!I29","v":0},{"$f":"+'Reformulación Presupuesto Bb2'!G29","v":0},null,"B.","Subvenciones de otras administraciones",null,null,{"$f":"+IF(J10<0,\"No s'admeten valors negatius\",\"\")","v":""}]
[null,"D3. Alquiler de bienes muebles/ inmuebles directamente vinculados al proyecto subvencionable (máximo 25% subvención en caso de inmuebles para un nuevo espacio)",{"$f":"+'Reformulación Presupuesto Bb2'!D33","v":0},{"$f":"+'Reformulación Presupuesto Bb2'!I33","v":0},{"$f":"+'Reformulación Presupuesto Bb2'!G33","v":0},{"$f":"+IF(D10<0,\"No s'admeten valors negatius\",\"\")","v":""},"C.","Subvenciones de entes privados",null,null,""]
[null,"D4. Adquisición de materiales y bienes consumibles íntegramente imputables al proyecto ",{"$f":"+'Reformulación Presupuesto Bb2'!D37","v":0},{"$f":"+'Reformulación Presupuesto Bb2'!I37","v":0},{"$f":"+'Reformulación Presupuesto Bb2'!G37","v":0},{"$f":"+IF(D11<0,\"No s'admeten valors negatius\",\"\")","v":""},"D.","Recursos propios de la organización aplicados al proyecto"]
[null,"D5. Transporte – mensajería imputables al proyecto ",{"$f":"+'Reformulación Presupuesto Bb2'!D41","v":0},{"$f":"+'Reformulación Presupuesto Bb2'!I41","v":0},{"$f":"+'Reformulación Presupuesto Bb2'!G41","v":0},null,"E.","Taquillaje"]
[null,"D6. Publicidad y propaganda de las actividades directamente vinculadas al proyecto",{"$f":"+'Reformulación Presupuesto Bb2'!D45","v":0},{"$f":"+'Reformulación Presupuesto Bb2'!I45","v":0},{"$f":"+'Reformulación Presupuesto Bb2'!G45","v":0},null,"F.","Cuotas de inscripción"]
[null,"D7.  Alojamiento y dietas, del personal contratante y voluntario, vinculados al proyecto",{"$f":"+'Reformulación Presupuesto Bb2'!D49","v":0},{"$f":"+'Reformulación Presupuesto Bb2'!I49","v":0},{"$f":"+'Reformulación Presupuesto Bb2'!G49","v":0},null,"G.","Venta de productos"]
[null,"D8. Ayudas para el transporte para los/las participantes de los proyectos en caso de que sea necesario de manera justificada",{"$f":"+'Reformulación Presupuesto Bb2'!D53","v":0},{"$f":"+'Reformulación Presupuesto Bb2'!I53","v":0},{"$f":"+'Reformulación Presupuesto Bb2'!G53","v":0},null,"H","Publicidad y/o Esponsorización"]
[null," D9. Viajes y desplazamientos imputables a las actividades del proyecto",{"$f":"+'Reformulación Presupuesto Bb2'!D57","v":0},{"$f":"+'Reformulación Presupuesto Bb2'!I57","v":0},{"$f":"+'Reformulación Presupuesto Bb2'!G57","v":0},null,"I.","Otros ingresos"]
[null,"D10. Tributos, cuando sean abonados directamente por la persona jurídica o física beneficiaria",{"$f":"+'Reformulación Presupuesto Bb2'!D61","v":0},{"$f":"+'Reformulación Presupuesto Bb2'!I61","v":0},{"$f":"+'Reformulación Presupuesto Bb2'!G61","v":0},null,null,"Total Ingresos",{"$f":"SUM(I9:I17)","v":0},{"$f":"SUM(J9:J17)","v":0}]
[null,"D11.  Gastos del informe de auditoria (máx. 1.500€ subvención)",{"$f":"+'Reformulación Presupuesto Bb2'!D65","v":0},{"$f":"+'Reformulación Presupuesto Bb2'!I65","v":0},{"$f":"+'Reformulación Presupuesto Bb2'!G65","v":0}]
[null,"D12.  Otros gastos que de manera justificada puedan imputarse directamente al proyecto subvencionable",{"$f":"+'Reformulación Presupuesto Bb2'!D69","v":0},{"$f":"+'Reformulación Presupuesto Bb2'!I69","v":0},{"$f":"+'Reformulación Presupuesto Bb2'!G69","v":0}]
[null,"Total Gastos Directos   ",{"$f":"SUM(C9:C20)","v":0},{"$f":"SUM(D9:D20)","v":0},{"$f":"SUM(E9:E20)","v":0}]
[null,"Gastos Indirectos  (se podrán asignar al proyecto utilizando un porcentaje de asignación) ","Previsión inicial coste total  ","Previsión reformulada coste total  ","Importe imputado a la subvención otorgada"]
[]
[null,"I.1 Personal de soporte al proyecto subvencionado (Nóminas y seguridad social)",{"$f":"+'Reformulación Presupuesto Bb2'!D75","v":0},{"$f":"+'Reformulación Presupuesto Bb2'!I75","v":0},{"$f":"+'Reformulación Presupuesto Bb2'!G75","v":0}]
[null,"I.2 Seguros",{"$f":"+'Reformulación Presupuesto Bb2'!D79","v":0},{"$f":"+'Reformulación Presupuesto Bb2'!I79","v":0},{"$f":"+'Reformulación Presupuesto Bb2'!G79","v":0}]
[null,"I.3 Amortización",{"$f":"+'Reformulación Presupuesto Bb2'!D83","v":0},{"$f":"+'Reformulación Presupuesto Bb2'!I83","v":0},{"$f":"+'Reformulación Presupuesto Bb2'!G83","v":0}]
[null,"I.4 Alquiler de bienes inmuebles",{"$f":"+'Reformulación Presupuesto Bb2'!D87","v":0},{"$f":"+'Reformulación Presupuesto Bb2'!I87","v":0},{"$f":"+'Reformulación Presupuesto Bb2'!G87","v":0},{"$f":"+IF(D26<0,\"No s'admeten valors negatius\",\"\")","v":""},"Ingresos menos gastos",null,{"$f":"+I18-C35","v":0},{"$f":"+J18-D35","v":0}]
[null,"I.5 Adquisición de materiales y bienes consumibles parcialmente imputables al proyecto",{"$f":"+'Reformulación Presupuesto Bb2'!D91","v":0},{"$f":"+'Reformulación Presupuesto Bb2'!I91","v":0},{"$f":"+'Reformulación Presupuesto Bb2'!G91","v":0}]
[null,"I.6 Mantenimiento de edificios y/o instalaciones",{"$f":"+'Reformulación Presupuesto Bb2'!D95","v":0},{"$f":"+'Reformulación Presupuesto Bb2'!I95","v":0},{"$f":"+'Reformulación Presupuesto Bb2'!G95","v":0}]
[null,"I.7 Comunicaciones (teléfono, correos, conexión a internet)",{"$f":"+'Reformulación Presupuesto Bb2'!D99","v":0},{"$f":"+'Reformulación Presupuesto Bb2'!I99","v":0},{"$f":"+'Reformulación Presupuesto Bb2'!G99","v":0},null,null,null,"% subvencionado inicialmente",{"$f":"I9/C35","v":{"$error":"#DIV/0!"}}]
[null,"I.8  Gastos financieros",{"$f":"+'Reformulación Presupuesto Bb2'!D103","v":0},{"$f":"+'Reformulación Presupuesto Bb2'!I103","v":0},{"$f":"+'Reformulación Presupuesto Bb2'!G103","v":0}]
[null,"I.9 Suministros",{"$f":"+'Reformulación Presupuesto Bb2'!D107","v":0},{"$f":"+'Reformulación Presupuesto Bb2'!I107","v":0},{"$f":"+'Reformulación Presupuesto Bb2'!G107","v":0},null,null,null,"% subvencionado después de reformular",{"$f":"+J9/D35","v":{"$error":"#DIV/0!"}},"*"]
[null,"I.10  Trabajo realizado por otras empresas, parcialmente imputables al proyecto subvencionable (limpieza, seguridad...)",{"$f":"+'Reformulación Presupuesto Bb2'!D111","v":0},{"$f":"+'Reformulación Presupuesto Bb2'!I111","v":0},{"$f":"+'Reformulación Presupuesto Bb2'!G111","v":0},null,null,"* Este porcentaje debe ser igual o menor al porcentaje subvencionado inicialmente."]
[null,"Total Gastos Indirectos  (Máx. 10% subv)",{"$f":"SUM(C24:C33)","v":0},{"$f":"SUM(D24:D33)","v":0},{"$f":"SUM(E24:E33)","v":0}]
[null,"Total Gastos ",{"$f":"+C21+C34","v":0},{"$f":"+D21+D34","v":0},{"$f":"+E21+E34","v":0}]